bitfinex-derivatives/quotes_ETHF0:USTF0_20250712
["timestamp","ask_amount","ask_price","bid_price","bid_amount"]
[1752328328820,5.7711,2935.2,2935.1,2.916]
[1752328329017,55.89624,2935.2,2935.1,2.916]
[1752328329216,55.89624,2935.2,2935.1,4.75117703]
[1752328329919,55.89624,2935.2,2935.1,7.95897703]
[1752328330216,55.89624,2935.2,2935.1,6.1238]
[1752328332022,55.2151,2935.2,2935.1,9.0945]
[1752328332219,55.89624,2935.2,2935.1,9.0945]
[1752328332723,55.89624,2935.2,2935.1,11.61083703]
[1752328332724,49.444,2935.2,2935.1,11.61083703]
[1752328332915,49.421,2935.4,2935.3,2.66311]
[1752328333117,5.49537,2935.5,2935.4,6.83027147]
[1752328333319,5.49537,2935.5,2935.4,9.34307453]
[1752328333520,5.49537,2935.5,2935.4,8.66197453]
[1752328334319,6.45217,2935.5,2935.4,8.66197453]
[1752328335423,6.45217,2935.5,2935.4,6.83027147]
[1752328337924,6.45217,2935.5,2935.4,7.51137147]
[1752328338125,4.8143,2935.5,2935.4,7.51137147]
[1752328338613,5.49537,2935.5,2935.4,7.51137147]
[1752328338817,4.8143,2935.5,2935.4,10.71917147]
[1752328339014,4.8143,2935.5,2935.4,12.55087453]
[1752328339921,5.49537,2935.5,2935.4,12.55087453]
[1752328340325,6.39847,2935.5,2935.4,12.55087453]
[1752328340926,6.39847,2935.5,2935.4,10.71917147]
[1752328342324,5.7174,2935.5,2935.4,10.71917147]
[1752328342923,6.39847,2935.5,2935.4,10.71917147]
[1752328344020,6.39847,2935.5,2935.4,6.22137147]
[1752328344223,6.39847,2935.5,2935.4,7.88887147]
[1752328344422,6.39847,2935.5,2935.4,10.71207147]
[1752328344824,5.7174,2935.5,2935.4,10.71207147]
[1752328345328,6.39847,2935.5,2935.4,10.71207147]
[1752328345527,5.7174,2935.5,2935.4,10.71207147]
[1752328345831,6.39847,2935.5,2935.4,10.71207147]
[1752328346022,6.39847,2935.5,2935.4,7.50427147]
[1752328346219,6.39847,2935.5,2935.4,10.71207147]
[1752328347229,5.7174,2935.5,2935.4,10.71207147]
[1752328347626,6.39847,2935.5,2935.4,10.71207147]
[1752328347822,4.8143,2935.5,2935.4,10.71207147]
[1752328348128,0.68105,2935.6,2935.5,2.60357]
[1752328348422,28.24134,2935.7,2935.6,2.60355]
[1752328348621,1.9642,2935.9,2935.8,0.68098]
[1752328348928,30.3953,2935.9,2935.8,7.50415147]
[1752328349229,30.3923,2935.9,2935.8,7.50415147]
[1752328349727,30.3923,2935.9,2935.8,9.33650872]
[1752328350228,5.7403,2935.9,2935.8,9.33650872]
[1752328350816,6.42128,2935.9,2935.8,9.33650872]
[1752328351420,6.42128,2935.9,2935.8,8.65552872]
[1752328351624,6.42128,2935.9,2935.8,6.82317147]
[1752328351823,6.42128,2935.9,2935.8,7.50417147]
[1752328352830,6.42128,2935.9,2935.8,9.33652872]
[1752328353725,6.42128,2935.9,2935.8,8.65552872]
[1752328353927,6.42128,2935.9,2935.8,1.83235725]
[1752328354224,24.648,2936.1,2935.7,5.04246895]
[1752328354225,3.5483,2935.8,2935.7,5.04246895]
[1752328354428,6.4213,2935.8,2935.7,5.04246895]
[1752328354630,31.0533,2935.8,2935.7,5.04246895]
[1752328354830,31.0533,2935.8,2935.7,1.83466895]
[1752328355030,3.55405,2935.6,2935.5,1.83466895]
[1752328355232,1.9642,2935.6,2935.4,1.83466895]
[1752328355429,6.42137,2935.5,2935.4,1.83466895]
[1752328358333,2.6453,2935.4,2935.3,1.83466895]
[1752328358526,6.4214,2935.4,2935.3,1.83466895]
[1752328359329,6.4214,2935.4,2935.3,6.82317147]
[1752328362245,5.5183,2935.4,2935.3,6.82317147]
[1752328363042,2.6453,2935.4,2935.3,6.82317147]
[1752328363244,0.6811,2935.4,2935.3,6.82317147]
[1752328364244,3.4977,2935.4,2935.3,6.82317147]
[1752328364945,6.2659,2935.4,2935.3,6.82317147]
[1752328367241,6.2659,2935.4,2935.3,3.99997147]
[1752328368143,6.2659,2935.4,2935.3,2.9089]
[1752328369148,6.33654,2935.2,2935.1,5.9859]
[1752328369343,0.6811,2935.4,2935.0,2.45004917]
[1752328369344,3.51996,2935.1,2935.0,4.24724917]
[1752328369547,3.51996,2935.1,2935.0,4.5305]
[1752328369747,6.33656,2935.1,2935.0,4.5305]
[1752328369948,5.6554,2935.1,2935.0,7.96144917]
[1752328370149,0.9737,2935.5,2935.0,4.24724917]
[1752328370445,6.33651,2935.4,2935.3,8.7192]
[1752328370845,5.36281,2935.4,2935.3,9.40032]
[1752328371044,4.6817,2935.5,2935.3,3.8889]
[1752328371247,5.36277,2935.5,2935.4,5.5114]
[1752328371447,5.36277,2935.5,2935.4,6.60247147]
[1752328371846,4.6817,2935.5,2935.4,7.28357147]
[1752328372046,6.33645,2935.7,2935.6,5.5114]
[1752328372245,6.33645,2935.7,2935.6,6.60247147]
[1752328373045,6.33645,2935.7,2935.6,8.43852414]
[1752328373545,6.33645,2935.7,2935.6,5.70522414]
[1752328373747,6.33645,2935.7,2935.6,8.43852414]
[1752328374049,6.33645,2935.7,2935.6,5.70522414]
[1752328374647,6.33645,2935.7,2935.6,1.83605267]
[1752328374847,6.33645,2935.7,2935.6,3.63325267]
[1752328375046,6.33645,2935.7,2935.6,4.61415267]
[1752328375353,6.33645,2935.7,2935.6,7.34745267]
[1752328376053,6.33645,2935.7,2935.6,4.61415267]
[1752328376950,6.33645,2935.7,2935.6,7.34745267]
[1752328377752,6.33645,2935.7,2935.6,5.5114]
[1752328378349,26.25542,2936.0,2935.3,5.65784917]
[1752328378350,3.5199,2935.4,2935.3,8.43594917]
[1752328378549,6.3365,2935.4,2935.3,8.43594917]
[1752328378949,6.3365,2935.4,2935.3,5.65784917]
[1752328379145,6.3365,2935.4,2935.3,3.2078]
[1752328379746,2.54622,2935.3,2935.2,2.45004917]
[1752328379955,6.33654,2935.2,2935.1,2.45004917]
[1752328380151,0.68119,2935.0,2934.9,2.45004917]
[1752328380357,6.33659,2935.0,2934.9,3.45004917]
[1752328380558,55.41759,2935.0,2934.9,3.45004917]
[1752328380748,0.68121,2934.9,2934.8,2.45004917]
[1752328380945,0.68121,2934.9,2934.5,3.03563103]
[1752328380946,5.36298,2934.6,2934.5,3.03563103]
[1752328381152,2.54645,2934.3,2934.2,8.04063103]
[1752328381351,6.33675,2934.3,2934.2,5.005]
[1752328381754,6.33675,2934.3,2934.2,5.9859]
[1752328381953,6.33675,2934.3,2934.2,3.2078]
[1752328382153,6.33675,2934.3,2933.9,0.9809]
[1752328382357,3.52022,2934.0,2933.9,2.7781]
[1752328382556,6.33682,2934.0,2933.9,5.5114]
[1752328382758,6.33682,2934.0,2933.9,6.60247147]
[1752328384455,6.33682,2934.0,2933.9,3.86917147]
[1752328385058,6.33682,2934.0,2933.9,5.5114]
[1752328385259,6.33682,2934.0,2933.9,2.7781]
[1752328385560,2.54657,2933.8,2933.7,5.9859]
[1752328385761,6.33687,2933.8,2933.7,8.7192]
[1752328386752,1.8651,2933.8,2933.7,10.49176147]
[1752328389765,4.6817,2933.8,2933.7,10.49176147]
[1752328390265,1.8651,2933.8,2933.7,10.49176147]
[1752328391466,6.33683,2934.0,2933.9,0.68144]
[1752328391663,0.68143,2934.0,2933.9,7.28391147]
[1752328391863,5.36313,2934.0,2933.9,7.28391147]
[1752328392161,0.68141,2934.1,2934.0,0.68142]
[1752328392363,5.36311,2934.1,2934.0,7.28389147]
[1752328392765,6.33681,2934.1,2934.0,7.28389147]
[1752328393164,5.6554,2934.1,2934.0,7.28389147]
[1752328393471,6.3368,2934.1,2934.0,7.28389147]
[1752328393670,1.8651,2934.4,2934.3,6.28735]
[1752328393966,2.54643,2934.4,2934.3,7.37842147]
[1752328394168,1.8651,2934.4,2934.3,7.37842147]
[1752328394465,5.5573,2934.4,2934.3,7.37842147]
[1752328395564,2.7185,2934.6,2934.5,4.4249]
[1752328395769,2.7185,2934.6,2934.5,7.31547147]
[1752328395963,4.5091,2934.6,2934.5,7.31547147]
[1752328396161,5.4346,2934.6,2934.5,7.31547147]
[1752328398867,6.11588,2934.6,2934.5,7.31547147]
[1752328399371,5.4346,2934.6,2934.5,7.31547147]
[1752328399568,1.7906,2934.4,2934.3,9.60762147]
[1752328399871,5.4346,2934.4,2934.3,10.52332147]
[1752328401165,6.11585,2934.8,2934.7,2.7152]
[1752328402271,4.91074,2935.1,2934.5,0.68129]
[1752328402272,6.11588,2934.6,2934.5,0.68129]
[1752328402466,5.4346,2934.6,2934.5,0.68129]
[1752328402661,5.4346,2934.6,2934.5,3.39649]
[1752328403371,6.11588,2934.6,2934.5,2.7152]
[1752328404369,0.68133,2934.4,2934.3,3.2078]
[1752328404574,6.11593,2934.4,2934.3,5.923]
[1752328407366,1.70298,2935.0,2934.4,2.8279]
[1752328407669,6.11583,2934.8,2934.7,6.63417147]
[1752328408470,5.4346,2934.8,2934.7,7.31543147]
[1752328408674,5.19033,2934.8,2934.7,7.31543147]
[1752328409072,4.5091,2934.8,2934.7,7.31543147]
[1752328409272,5.19033,2934.8,2934.7,7.31543147]
[1752328409475,6.11583,2934.8,2934.7,6.63417147]
[1752328409671,6.11583,2934.8,2934.7,7.31543147]
[1752328409870,5.4346,2934.8,2934.7,7.31543147]
[1752328410071,4.5091,2934.8,2934.7,7.31543147]
[1752328410373,6.11583,2934.8,2934.7,6.63417147]
[1752328410871,6.11583,2934.8,2934.7,7.31543147]
[1752328411276,4.5091,2934.8,2934.7,7.31543147]
[1752328412077,5.4346,2934.8,2934.7,7.31543147]
[1752328412974,6.11583,2934.8,2934.7,7.31543147]
[1752328413676,5.4346,2934.8,2934.7,7.31543147]
[1752328414271,4.5091,2934.8,2934.7,7.31543147]
[1752328414477,4.5091,2935.3,2935.2,6.22424]
[1752328414676,5.4346,2935.3,2935.2,7.31531147]
[1752328414976,4.5091,2935.3,2935.2,7.31531147]
[1752328415573,5.19022,2935.3,2935.2,7.31531147]
[1752328415774,4.5091,2935.3,2935.2,7.31531147]
[1752328416070,5.4346,2935.3,2935.2,7.31531147]
[1752328416878,5.4346,2935.5,2935.4,6.2242]
[1752328417176,5.4346,2935.5,2935.4,7.31527147]
[1752328418681,6.1156,2935.8,2935.7,5.5431]
[1752328419376,5.4346,2935.8,2935.7,6.22413]
[1752328419773,6.1156,2935.8,2935.7,6.22413]
[1752328420077,6.1156,2935.8,2935.7,7.31520147]
[1752328420078,5.4346,2935.8,2935.7,7.31520147]
[1752328420480,6.1156,2935.8,2935.7,7.31520147]
[1752328422079,5.4346,2935.8,2935.7,7.31520147]
[1752328423786,6.1156,2935.8,2935.7,7.31520147]
[1752328424476,5.4346,2935.8,2935.7,7.31520147]
[1752328424877,5.4346,2935.8,2935.7,6.22413]
[1752328425184,5.4346,2935.8,2935.7,7.31520147]
[1752328426276,6.1156,2935.8,2935.7,7.31520147]
[1752328426482,6.1156,2935.8,2935.7,6.63417147]
[1752328426683,6.1156,2935.8,2935.7,7.31520147]
[1752328427883,5.4346,2935.8,2935.7,7.31520147]
[1752328428285,2.7161,2935.8,2935.7,7.31520147]
[1752328429085,3.4103,2935.9,2935.8,6.1019]
[1752328429479,3.4103,2935.9,2935.8,5.4209]
[1752328429682,5.1552,2935.9,2935.8,6.1019]
[1752328429879,6.0604,2935.9,2935.8,6.1019]
[1752328431186,5.3794,2936.2,2936.1,6.10183]
[1752328431375,5.3794,2936.2,2936.1,7.19290147]
[1752328431578,2.50498,2936.4,2936.3,6.10178]
[1752328431780,2.50496,2936.4,2936.3,7.19285147]
[1752328432084,3.41016,2936.4,2936.3,10.40065147]
[1752328432484,1.8241,2936.4,2936.3,10.40065147]
[1752328432685,2.50496,2936.4,2936.3,10.40065147]
[1752328432987,3.41016,2936.4,2936.3,10.40065147]
[1752328433780,2.7293,2936.4,2936.3,10.40065147]
[1752328434186,3.41016,2936.4,2936.3,10.40065147]
[1752328434688,5.3794,2936.4,2936.3,10.40065147]
[1752328435286,6.06026,2936.4,2936.3,10.40065147]
[1752328436791,5.3794,2936.4,2936.3,10.40065147]
[1752328437386,2.50496,2936.4,2936.3,10.40065147]
[1752328437586,3.41016,2936.4,2936.3,10.40065147]
[1752328438084,2.7293,2936.4,2936.3,10.40065147]
[1752328438287,3.41016,2936.4,2936.3,10.40065147]
[1752328439589,6.06026,2936.4,2936.3,10.40065147]
[1752328439783,6.06026,2936.4,2936.3,10.40066147]
[1752328440889,6.06026,2936.4,2936.3,9.71977147]
[1752328441194,6.06026,2936.4,2936.3,10.40066147]
[1752328442188,6.06026,2936.4,2936.3,3.2078]
[1752328442494,7.15133147,2936.4,2936.3,3.2078]
[1752328442797,7.15133147,2936.4,2935.8,3.6761]
[1752328442798,5.54038,2935.9,2935.8,5.9126]
[1752328443700,2.7293,2935.9,2935.8,9.3097]
[1752328444101,0.9052,2935.9,2935.8,9.3097]
[1752328445698,1.8241,2936.1,2936.0,2.42575]
[1752328445904,2.7293,2936.1,2936.0,5.4209]
[1752328446099,2.7293,2936.1,2936.0,6.10186]
[1752328446100,0.68093,2936.1,2936.0,6.10186]
[1752328446704,3.41023,2936.1,2936.0,5.4209]
[1752328447502,5.54033,2936.1,2936.0,2.7048]
[1752328447702,5.54033,2936.1,2936.0,4.4496]
[1752328448197,5.54033,2936.1,2936.0,5.4209]
[1752328448400,0.68098,2935.9,2935.8,6.04367147]
[1752328448604,3.41028,2935.9,2935.8,9.71977147]
[1752328449702,0.9052,2936.4,2936.0,5.4209]
[1752328449907,3.41016,2936.4,2936.3,6.51197147]
[1752328452706,2.7293,2936.4,2936.3,6.51197147]
[1752328452907,3.41016,2936.4,2936.3,6.51197147]
[1752328453705,1.58606,2936.4,2936.3,7.19286147]
[1752328453904,2.7293,2936.4,2936.3,7.19286147]
[1752328454609,3.41016,2936.4,2936.3,6.51197147]
[1752328455412,5.49096,2936.4,2936.3,6.51197147]
[1752328455601,5.49096,2936.4,2936.3,4.5464]
[1752328455807,3.41016,2936.4,2936.3,5.499]
[1752328458011,5.49096,2936.4,2936.3,5.499]
[1752328458212,3.41016,2936.4,2936.3,5.499]
[1752328459008,3.41016,2936.4,2936.3,6.59007147]
[1752328462722,3.41016,2936.4,2936.3,5.499]
[1752328462925,5.49096,2936.4,2936.3,5.499]
[1752328463623,3.41016,2936.4,2936.3,5.499]
[1752328464320,5.49096,2936.4,2936.3,4.5464]
[1752328464724,5.49096,2936.4,2936.3,5.499]
[1752328465026,5.49096,2936.4,2936.3,2.7048]
[1752328465518,3.41033,2936.1,2936.0,5.5201]
[1752328465727,5.49113,2936.1,2936.0,5.5201]
[1752328465925,3.41033,2936.1,2936.0,5.5201]
[1752328469322,0.68092,2936.2,2936.1,6.20102]
[1752328469523,0.68092,2936.2,2936.1,5.5201]
[1752328469721,0.68092,2936.2,2936.1,6.61117147]
[1752328469923,1.64522,2936.2,2936.1,7.29210147]
[1752328470728,0.68092,2936.2,2936.1,7.29210147]
[1752328471326,1.64522,2936.2,2936.1,7.29210147]
[1752328473926,0.9643,2936.2,2936.1,7.29210147]
[1752328474323,0.68085,2936.5,2936.3,4.5675]
[1752328474524,3.41025,2936.5,2936.4,5.65857147]
[1752328474829,3.41025,2936.5,2936.4,7.29203147]
[1752328475425,3.41025,2936.5,2936.4,6.61117147]
[1752328475825,3.41025,2936.5,2936.4,5.5201]
[1752328476225,5.49105,2936.5,2936.4,5.5201]
[1752328476626,5.49105,2936.5,2936.4,6.61117147]
[1752328477028,2.7294,2936.5,2936.4,7.29203147]
[1752328477625,0.9643,2936.7,2936.6,0.68082]
[1752328477927,3.4102,2936.7,2936.6,6.61117147]
[1752328478129,3.4102,2936.7,2936.6,7.29199147]
[1752328478524,2.7294,2936.7,2936.6,7.29199147]
[1752328478832,3.4102,2936.7,2936.6,7.29199147]
[1752328479530,4.85288,2936.8,2936.7,3.475]
[1752328479731,5.66722019,2936.8,2936.7,6.2009]
[1752328480229,4.85288,2936.8,2936.7,6.2009]
[1752328480622,4.85288,2936.8,2936.7,5.5201]
[1752328480828,6.61798,2936.8,2936.7,5.5201]
[1752328482031,6.62033052,2936.8,2936.7,5.5201]
[1752328483530,8.60303052,2936.8,2936.7,5.5201]
[1752328483732,6.62033052,2936.8,2936.7,5.5201]
[1752328483937,8.60303052,2936.8,2936.7,5.5201]
[1752328484634,6.62033052,2936.8,2936.7,5.5201]
[1752328484829,6.62033052,2936.8,2936.7,6.2009]
[1752328485237,6.62033052,2936.8,2936.7,5.5201]
[1752328486536,3.41253052,2936.8,2936.7,5.5201]
[1752328487131,5.39523052,2936.8,2936.7,5.5201]
[1752328487633,5.39523052,2936.8,2936.7,4.5675]
[1752328487931,5.39523052,2936.8,2936.7,5.5364]
[1752328488133,3.41253052,2936.8,2936.7,5.5364]
[1752328490036,2.73175052,2936.8,2936.7,6.2172]
[1752328490432,1.64742052,2936.8,2936.7,6.2172]
[1752328492638,0.00235052,2936.8,2936.7,6.2172]
[1752328492840,0.68312052,2936.8,2936.7,6.2172]
[1752328493731,1.62242052,2936.8,2936.7,6.2172]
[1752328493934,1.62242052,2936.8,2936.7,5.5364]
[1752328494432,1.62242052,2936.8,2936.7,6.2172]
[1752328494741,0.94165052,2936.8,2936.7,6.2172]
[1752328494939,1.62242052,2936.8,2936.7,6.2172]
[1752328495841,0.94165052,2936.8,2936.7,6.2172]
[1752328496139,1.62242052,2936.8,2936.7,6.2172]
[1752328497037,0.94165052,2936.8,2936.7,6.2172]
[1752328498850,0.00235052,2936.8,2936.7,6.2172]
[1752328500542,2.70715052,2936.8,2936.7,6.2172]
[1752328501140,0.00235052,2936.8,2936.7,6.2172]
[1752328503246,0.00235052,2936.8,2936.7,8.65443607]
[1752328504144,0.00235052,2936.8,2936.7,6.2172]
[1752328505944,0.00235052,2936.8,2936.7,9.425]
[1752328507740,0.9393,2937.2,2937.1,2.4534]
[1752328507941,1.61998,2937.2,2937.1,7.16177147]
[1752328508140,0.9393,2937.2,2937.1,7.16177147]
[1752328508342,1.61998,2937.2,2937.1,7.16177147]
[1752328508642,0.9393,2937.2,2937.1,7.16177147]
[1752328510840,2.7048,2937.2,2937.1,7.16177147]
[1752328513740,3.38548,2937.2,2937.1,7.16177147]
[1752328513936,2.7048,2937.2,2937.1,7.16177147]
[1752328514141,3.38548,2937.2,2937.1,7.16177147]
[1752328514445,5.27188,2937.2,2937.1,6.19287147]
[1752328515342,5.27188,2937.2,2937.1,6.46257147]
[1752328515649,5.17083,2937.0,2936.9,5.12698291]
[1752328515836,5.17083,2937.0,2936.9,2.681]
[1752328516036,5.17083,2937.0,2936.9,3.36175]
[1752328516243,5.17083,2937.0,2936.9,4.45282147]
[1752328516948,5.17083,2937.0,2936.9,3.77207147]
[1752328517551,4.25087,2936.8,2936.3,3.03563103]
[1752328517751,0.9073,2936.3,2936.2,3.36189]
[1752328517938,2.6037,2936.3,2936.2,5.98399]
[1752328518339,3.28459,2936.3,2936.2,5.98399]
[1752328518742,2.6037,2936.3,2936.2,5.98399]
[1752328518949,1.6964,2936.2,2936.1,1.09107147]
[1752328519151,4.50533,2936.2,2936.1,3.77207147]
[1752328519543,0.68096,2936.0,2935.9,3.2078]
[1752328519747,0.68096,2936.0,2935.9,8.65157147]
[1752328519748,3.8244,2936.0,2935.9,8.65157147]
[1752328519946,2.6037,2936.0,2935.9,10.28295147]
[1752328520946,0.9073,2936.0,2935.9,10.28295147]
[1752328522741,0.9073,2936.0,2935.9,7.07515147]
[1752328525549,2.6037,2936.0,2935.9,7.07515147]
[1752328526752,3.28466,2936.0,2935.9,7.07515147]
[1752328527053,2.6037,2936.0,2935.9,7.07515147]
[1752328527254,2.6037,2936.0,2935.9,31.16215147]
[1752328527857,0.9073,2936.0,2935.9,31.16215147]
[1752328528257,3.28457,2936.4,2936.3,5.98397]
[1752328528558,3.28457,2936.4,2936.3,7.07506147]
[1752328529348,0.9073,2936.4,2936.3,11.37393294]
[1752328529553,2.37721,2936.7,2936.6,5.98392]
[1752328529754,2.37721,2936.7,2936.6,6.39417147]
[1752328530148,3.28451,2936.7,2936.6,7.07499147]
[1752328530349,2.6037,2936.7,2936.6,7.07499147]
[1752328530556,3.2845,2936.7,2936.6,7.07499147]
[1752328531150,2.6037,2936.7,2936.6,7.07499147]
[1752328533465,3.2845,2936.7,2936.6,6.39417147]
[1752328535062,3.2845,2936.7,2936.1,5.3031]
[1752328535063,2.128,2936.6,2936.1,5.3031]
[1752328535263,3.28459,2936.3,2936.2,3.30301]
[1752328535469,2.6037,2936.3,2936.2,3.30301]
[1752328535665,2.6037,2936.3,2936.2,5.98401]
[1752328536365,3.28459,2936.3,2936.2,5.98401]
[1752328536566,2.6037,2936.3,2936.2,5.98401]
[1752328537769,0.9073,2936.3,2936.2,5.98401]
[1752328538168,2.6037,2936.3,2936.2,5.98401]
[1752328539070,3.28459,2936.3,2936.2,5.98401]
[1752328540068,2.6037,2936.3,2936.2,5.98401]
[1752328541071,3.28459,2936.3,2936.2,5.98401]
[1752328541267,0.9073,2936.3,2936.2,5.98401]
[1752328541666,3.28459,2936.3,2936.2,31.12208147]
[1752328542370,2.6037,2936.3,2936.2,31.12208147]
[1752328542567,2.6037,2936.7,2936.6,5.98389]
[1752328542872,2.6037,2936.7,2936.6,7.07496147]
[1752328544573,0.9073,2936.7,2936.6,7.07496147]
[1752328545173,2.7231,2936.7,2936.6,7.07496147]
[1752328546273,0.68077,2936.9,2936.8,0.68077]
[1752328546471,3.2078,2937.6,2937.2,5.1676]
[1752328546677,5.70419,2937.6,2937.5,5.34807147]
[1752328546976,5.0236,2937.6,2937.5,6.93928147]
[1752328547177,6.0199,2937.6,2937.5,6.93928147]
[1752328547572,1.81783807,2938.7,2938.3,1.70106]
[1752328547776,2.8121,2938.7,2938.6,9.05576]
[1752328547976,3.64892398,2938.7,2938.6,34.17683147]
[1752328548470,2.8121,2939.2,2939.1,2.40044]
[1752328548680,2.8121,2939.2,2939.1,6.93891147]
[1752328549872,0.22774851,2940.0,2938.9,3.2078]
[1752328549873,5.2347,2939.8,2939.7,2.5368]
[1752328550066,1.8158,2939.6,2939.5,3.2078]
[1752328550265,5.91483,2939.6,2939.5,3.2078]
[1752328553381,5.91487,2939.4,2939.3,2.5368]
[1752328553583,5.91489,2939.3,2939.2,3.2078]
[1752328553782,2.49604,2939.1,2939.0,4.257]
[1752328553977,5.91494,2939.1,2939.0,4.257]
[1752328554183,5.99922147,2939.6,2938.8,4.257]
[1752328554184,5.91499,2938.9,2938.8,4.257]
[1752328554483,3.49243,2938.7,2938.6,7.4648]
[1752328554871,5.91503,2938.7,2938.6,3.2078]
[1752328555175,3.2078,2938.9,2938.4,1.09107147]
[1752328555385,3.49236,2939.0,2938.9,4.257]
[1752328555583,5.91496,2939.0,2938.9,4.257]
[1752328555981,1.8158,2938.7,2938.6,9.46647147]
[1752328556183,3.49243,2938.7,2938.6,9.46647147]
[1752328557076,2.8121,2938.7,2938.6,9.46647147]
[1752328557273,0.9963,2938.7,2938.6,9.46647147]
[1752328557473,0.68033,2938.7,2938.6,9.46647147]
[1752328557675,0.68032,2938.8,2938.7,3.4474]
[1752328557873,0.68032,2938.8,2938.7,5.1676]
[1752328558178,0.6802,2939.3,2939.2,5.1676]
[1752328558478,2.496,2939.3,2939.2,6.25867147]
[1752328558684,3.4923,2939.3,2939.2,4.257]
[1752328558983,3.4923,2939.3,2939.2,6.25867147]
[1752328559576,0.6802,2939.3,2939.2,9.46647147]
[1752328560783,0.68018,2939.4,2939.2,6.01907147]
[1752328560986,3.49228,2939.4,2939.3,5.1676]
[1752328561673,3.49227,2939.4,2939.3,5.1676]
[1752328563580,3.2078,2939.8,2939.4,2.5368]
[1752328563786,6.69998,2939.8,2939.7,5.34807147]
[1752328563988,1.8158,2939.5,2939.3,1.09107147]
[1752328564188,3.49225,2939.5,2939.4,5.1676]
[1752328564485,1.8158,2939.5,2939.4,5.1676]
[1752328564677,4.2041,2940.5,2940.0,2.5368]
[1752328564884,3.49206,2940.4,2940.3,5.1676]
[1752328565078,1.8158,2940.1,2940.0,1.7202]
[1752328565283,5.91471,2940.1,2940.0,4.257]
[1752328565685,3.49211,2940.1,2940.0,5.1676]
[1752328565886,1.8158,2940.2,2940.1,1.7202]
[1752328566087,3.49205,2940.4,2940.3,1.7202]
[1752328566388,3.49205,2940.4,2940.3,5.1676]
[1752328566882,3.49204,2940.4,2940.3,7.34389017]
[1752328567086,3.49204,2940.4,2940.3,5.1676]
[1752328568483,5.91464,2940.4,2940.3,4.257]
[1752328568687,3.49204,2940.4,2940.3,5.1676]
[1752328568884,2.8121,2939.9,2939.8,8.3754]
[1752328569090,3.49216,2939.9,2939.8,8.3754]
[1752328570186,0.9963,2940.2,2939.9,2.5368]
[1752328570389,0.67996,2940.3,2940.2,5.1676]
[1752328570592,3.49206,2940.3,2940.2,5.1676]
[1752328570984,0.67996,2940.3,2940.2,4.257]
[1752328571288,3.49206,2940.3,2940.2,5.1676]
[1752328571590,5.91476,2939.9,2939.8,4.928]
[1752328571984,3.49216,2939.9,2939.8,8.3754]
[1752328572187,5.6304,2940.5,2940.0,1.7202]
[1752328572397,1.67624,2940.4,2940.3,5.1676]
[1752328572884,3.2078,2940.5,2940.3,5.1676]
[1752328573087,3.88773,2940.5,2940.4,5.1676]
[1752328573686,5.70353,2940.5,2940.4,5.1676]
[1752328573991,6.69983,2940.5,2940.4,5.1676]
[1752328574389,2.35879,2940.2,2940.1,5.1162]
[1752328574588,2.6751,2940.2,2940.1,5.79621]
[1752328574788,0.67998,2940.3,2940.2,5.1162]
[1752328575294,2.35878,2940.3,2940.2,5.1162]
[1752328575489,3.26638,2940.3,2940.2,5.1162]
[1752328576093,0.67998,2940.3,2940.2,5.82909]
[1752328576391,0.67998,2940.3,2940.2,5.1491]
[1752328576592,3.26638,2940.3,2940.2,5.1491]
[1752328577595,2.35876,2940.3,2940.2,5.1491]
[1752328577797,0.67996,2940.3,2940.2,5.1491]
[1752328578299,0.67992,2940.5,2940.4,5.1491]
[1752328579296,0.67987,2940.7,2940.6,1.7386]
[1752328579499,0.67987,2940.7,2940.6,3.91489017]
[1752328579699,3.26627,2940.7,2940.6,1.7386]
[1752328579902,3.26627,2940.7,2940.6,5.1491]
[1752328580197,3.2078,2941.1,2941.0,1.7386]
[1752328580402,4.8866,2941.1,2941.0,5.8289]
[1752328580701,5.56638,2941.1,2941.0,5.1491]
[1752328580897,4.8866,2941.1,2941.0,5.8289]
[1752328581095,0.9076,2941.3,2941.0,5.1491]
[1752328581291,0.9076,2941.3,2940.9,2.17629017]
[1752328581292,1.6788,2941.2,2941.1,3.36188]
[1752328581490,2.5864,2941.3,2941.2,4.88536]
[1752328581691,2.5864,2941.3,2941.2,5.82886]
[1752328581895,3.26613,2941.3,2941.2,5.1491]
[1752328582102,2.5864,2941.3,2941.2,5.82886]
[1752328582300,5.66993,2941.3,2941.2,4.2056]
[1752328582502,3.88752,2941.4,2941.2,8.00514017]
[1752328582702,6.47392,2941.4,2941.3,5.1491]
[1752328583998,3.26623,2940.9,2940.8,2.467]
[1752328584299,4.051,2940.9,2940.8,5.1491]
[1752328584499,4.73083,2940.9,2940.8,5.1491]
[1752328584699,5.63849,2940.6,2940.5,7.4134]
[1752328584901,1.6788,2940.3,2940.2,8.3569]
[1752328585103,1.58752,2940.5,2940.4,2.6821]
[1752328585303,1.58752,2940.5,2940.4,5.1491]
[1752328585499,2.35876,2940.3,2940.2,7.4134]
[1752328585807,3.26636,2940.3,2940.2,5.1491]
[1752328586497,3.26643,2940.0,2939.9,4.9464]
[1752328586896,2.5864,2940.3,2940.2,5.1491]
[1752328587100,4.73089,2940.6,2940.5,1.7386]
[1752328587293,2.35869,2940.6,2940.5,4.2056]
[1752328587705,3.26629,2940.6,2940.5,4.2056]
[1752328587905,3.26629,2940.6,2940.5,5.1491]
[1752328589504,1.6788,2940.6,2940.5,5.1491]
[1752328589707,2.35869,2940.6,2940.5,7.32539017]
[1752328589906,2.35869,2940.6,2940.5,5.1491]
[1752328590106,0.67988,2940.7,2940.5,5.82902]
[1752328590306,1.58748,2940.7,2940.6,5.1491]
[1752328590703,3.26628,2940.7,2940.6,5.1491]
[1752328591598,0.67986,2940.8,2940.6,2.41849]
[1752328591805,0.67986,2940.8,2940.7,2.6821]
[1752328592003,3.26626,2940.8,2940.7,5.1491]
[1752328592505,0.67986,2940.8,2940.7,5.1491]